bitfinex-derivatives/quotes_ETHF0:USTF0_20250520
["timestamp","ask_amount","ask_price","bid_price","bid_amount"]
[1747705327677,4.4728,2536.3,2535.8,1.385]
[1747705327879,49.67,2536.5,2535.8,1.385]
[1747705328180,3.2078,2536.3,2535.8,1.385]
[1747705328578,3.99618,2536.3,2535.9,0.78847]
[1747705328784,8.872,2536.4,2536.0,1.3905]
[1747705328987,9.66034,2536.4,2536.0,1.3905]
[1747705329192,3.99622,2536.1,2536.0,1.3905]
[1747705329379,3.2078,2536.1,2536.0,1.3905]
[1747705329581,0.78841,2536.2,2536.0,1.3905]
[1747705329780,0.78842,2536.1,2536.0,1.3905]
[1747705329975,3.2078,2536.2,2535.5,3.2078]
[1747705330184,0.78847,2536.0,2535.6,2.17906]
[1747705330392,0.78847,2536.0,2535.7,1.3905]
[1747705331489,3.99632,2535.8,2535.7,1.3905]
[1747705331687,0.78864,2535.4,2535.2,3.8642]
[1747705331987,0.78864,2535.4,2535.3,1.361]
[1747705332998,3.2078,2535.5,2535.3,2.14967]
[1747705333195,3.2078,2535.5,2535.3,4.88967]
[1747705333399,0.00591459,2535.6,2535.3,4.101]
[1747705333602,0.78864,2535.4,2535.3,2.74]
[1747705333898,8.875,2535.4,2534.7,3.99664]
[1747705334092,0.78876,2535.0,2534.9,1.3017]
[1747705334298,0.78872,2535.2,2534.9,1.3017]
[1747705334600,8.875,2535.4,2534.9,2.09049]
[1747705334793,0.78869,2535.3,2534.9,2.09049]
[1747705334988,9.66365,2535.4,2534.9,1.3017]
[1747705335195,10.2145,2535.5,2534.9,4.0417]
[1747705335390,0.00591459,2535.6,2534.9,4.0417]
[1747705335593,0.78865,2535.4,2535.0,3.99655]
[1747705335798,0.78865,2535.4,2535.1,1.3017]
[1747705336003,0.78863,2535.5,2535.1,2.09043]
[1747705336203,0.78865,2535.4,2535.2,1.3017]
[1747705336502,8.88091459,2535.6,2535.2,1.3017]
[1747705337001,9.66949459,2535.6,2535.2,2.09039]
[1747705337202,0.00591459,2535.6,2535.2,1.3017]
[1747705337405,0.00591459,2535.6,2535.3,1.3818]
[1747705337595,0.79450459,2535.6,2535.3,1.3818]
[1747705337905,0.78861,2535.5,2535.3,1.3818]
[1747705338102,0.78864,2535.4,2535.3,1.3818]
[1747705338905,1.2925,2535.4,2535.0,3.2078]
[1747705339201,0.78865,2535.4,2535.1,1.3818]
[1747705339405,12.0848,2535.5,2535.1,1.3818]
[1747705339598,0.78864,2535.4,2535.1,1.3818]
[1747705340196,12.0848,2535.5,2534.7,3.2078]
[1747705340398,0.7888,2534.9,2534.7,3.2078]
[1747705340605,1.3263,2535.3,2534.8,1.3162]
[1747705340808,0.78873,2535.2,2534.8,2.10501]
[1747705341001,1.3263,2535.3,2534.8,1.3162]
[1747705341501,0.78879,2535.0,2534.8,1.3162]
[1747705341805,9.66575,2535.1,2534.8,1.3162]
[1747705342007,0.78878,2535.0,2534.8,1.3162]
[1747705342507,9.66575,2535.1,2534.8,1.3162]
[1747705342810,8.877,2535.1,2534.8,2.10501]
[1747705343012,9.66574,2535.1,2534.8,2.10501]
[1747705343308,8.877,2535.1,2534.9,0.78879]
[1747705343499,8.877,2535.1,2535.0,1.3061]
[1747705343695,9.66573,2535.1,2535.0,1.3061]
[1747705343906,0.78873,2535.1,2535.0,1.3061]
[1747705344309,2.11653,2535.1,2535.0,1.3061]
[1747705344512,3.2078,2535.5,2535.0,1.3061]
[1747705344713,13.4136,2535.5,2535.0,2.09485]
[1747705344904,54.2136,2535.5,2535.0,1.3061]
[1747705345105,4.5356,2535.5,2535.0,1.3061]
[1747705345305,14.20223,2535.5,2535.1,0.78872]
[1747705345509,12.87443,2535.5,2535.2,1.3061]
[1747705345709,3.2078,2535.5,2535.3,0.78866]
[1747705345909,3.2078,2535.5,2535.4,1.3061]
[1747705346704,0.00591459,2535.6,2535.4,1.3061]
[1747705346911,0.00591459,2535.6,2535.5,0.78861]
[1747705347110,0.00591459,2535.6,2535.5,2.09421]
[1747705347412,0.79449459,2535.6,2535.5,1.2748]
[1747705347708,4.00229459,2535.6,2535.5,1.2748]
[1747705348111,3.21371459,2535.6,2535.5,1.2748]
[1747705348615,4.00229459,2535.6,2535.5,1.2748]
[1747705349006,3.21371459,2535.6,2535.5,1.2748]
[1747705349712,4.00229459,2535.6,2535.5,1.2748]
[1747705350013,0.78863,2535.5,2535.1,1.21576282]
[1747705350306,3.21371459,2535.6,2535.2,1.3629]
[1747705350510,3.21371459,2535.6,2535.1,0.42704282]
[1747705350511,0.7887,2535.2,2535.1,0.42704282]
[1747705350706,3.2078,2535.3,2535.1,0.42704282]
[1747705350906,3.2078,2535.3,2535.2,1.3629]
[1747705351102,3.99647,2535.3,2535.2,1.3629]
[1747705351306,5.30097,2535.3,2535.2,1.3629]
[1747705351808,0.7887,2535.2,2535.1,0.42704282]
[1747705352106,0.78879,2535.0,2534.8,1.80893637]
[1747705352306,1.3045,2535.2,2535.0,0.78875]
[1747705352510,0.78865,2535.4,2535.1,1.3238]
[1747705352711,3.21371459,2535.6,2535.1,1.3238]
[1747705352712,12.09671459,2535.6,2535.1,2.11252]
[1747705352907,0.78866,2535.4,2535.1,1.3238]
[1747705353109,0.78866,2535.4,2535.2,1.3238]
[1747705353508,0.78867,2535.3,2535.2,1.3238]
[1747705353707,0.78866,2535.4,2535.2,1.3238]
[1747705354015,2.08381,2535.5,2535.2,1.3238]
[1747705354614,1.2952,2535.5,2535.2,2.11249]
[1747705355417,1.2952,2535.5,2535.3,2.11246]
[1747705355613,3.21371459,2535.6,2535.3,1.3238]
[1747705355818,3.21371459,2535.6,2535.5,0.78861]
[1747705356818,3.21371459,2535.6,2535.3,1.3238]
[1747705357018,3.21371459,2535.6,2535.4,0.78864]
[1747705357213,0.00591459,2535.6,2535.5,2.13181]
[1747705357916,3.2078,2536.0,2535.9,0.78849]
[1747705359026,3.2078,2536.4,2536.0,0.78843]
[1747705359316,0.78837,2536.3,2536.1,1.3438]
[1747705359523,0.78834,2536.4,2536.1,1.3438]
[1747705359821,2.10704,2536.4,2536.1,1.3438]
[1747705360417,2.10705,2536.4,2536.1,1.3438]
[1747705360814,1.49702459,2536.5,2536.1,2.13222]
[1747705361016,1.49702459,2536.5,2536.1,1.3438]
[1747705361017,0.00591459,2536.5,2536.1,1.3438]
[1747705361313,0.00591459,2536.5,2536.2,1.77218099]
[1747705361517,0.00591459,2536.5,2536.3,1.2602]
[1747705362022,0.79422459,2536.5,2536.3,1.2602]
[1747705362319,0.00591459,2536.5,2536.3,1.2602]
[1747705362525,0.00591459,2536.5,2536.4,0.78833]
[1747705362722,0.00591459,2536.5,2536.4,0.0121809]
[1747705363019,0.00591459,2536.5,2536.4,0.8005109]
[1747705363210,0.00591459,2536.5,2536.4,4.8007109]
[1747705363718,0.79421459,2536.5,2536.4,4.0123809]
[1747705363913,4.00201459,2536.5,2536.4,2.7521809]
[1747705364113,4.00201459,2536.5,2536.4,0.0121809]
[1747705365814,5.35961459,2536.5,2536.4,0.0121809]
[1747705366922,1.36351459,2536.5,2536.4,0.0121809]
[1747705367122,0.00591459,2536.5,2536.4,1.3339809]
[1747705367318,0.79421459,2536.5,2536.4,1.3339809]
[1747705367822,2.17931459,2536.5,2536.4,1.3339809]
[1747705368514,1.39101459,2536.5,2536.4,1.3339809]
[1747705369115,0.00591459,2536.5,2536.4,1.3339809]
[1747705370819,0.79421459,2536.5,2536.4,1.3339809]
[1747705371332,0.00591459,2536.5,2536.4,1.3339809]
[1747705372217,0.00591459,2536.5,2536.4,2.1223109]
[1747705372522,0.00591459,2536.5,2536.4,1.3339809]
[1747705372724,0.00591459,2536.5,2536.4,2.1223109]
[1747705374421,0.00591459,2536.5,2536.4,1.3339809]
[1747705374627,0.79421459,2536.5,2536.4,1.3339809]
[1747705375823,0.00591459,2536.5,2536.4,1.3339809]
[1747705376127,0.00591459,2536.5,2536.4,4.8623109]
[1747705376425,0.00591459,2536.5,2536.4,4.0739809]
[1747705376725,0.79421459,2536.5,2536.4,4.0739809]
[1747705377122,0.79421459,2536.5,2536.4,1.3339809]
[1747705378727,0.00591459,2536.5,2536.4,1.3339809]
[1747705379829,0.00591459,2536.5,2536.4,2.1223109]
[1747705380037,0.00591459,2536.5,2536.4,1.3339809]
[1747705380221,0.00591459,2536.5,2536.4,2.1223109]
[1747705380427,0.00591459,2536.5,2536.4,7.1223109]
[1747705380729,0.00591459,2536.5,2536.4,1.3339809]
[1747705381230,0.00591459,2536.5,2536.4,2.1223109]
[1747705381629,0.00591459,2536.5,2536.4,7.1223109]
[1747705381827,0.00591459,2536.5,2536.4,10.3301109]
[1747705382129,1.2703,2537.4,2536.4,10.3301109]
[1747705382130,4.4781,2537.4,2536.5,1.97073]
[1747705382329,3.2078,2537.4,2536.7,3.2078]
[1747705382534,3.2078,2537.4,2537.1,0.78811]
[1747705382830,3.2078,2537.4,2537.2,1.2907]
[1747705383223,0.78805,2537.3,2537.2,1.2907]
[1747705383424,2.08755,2537.3,2537.2,1.2907]
[1747705383624,0.78804,2537.4,2537.2,1.2907]
[1747705383824,1.30541459,2537.6,2537.2,1.2907]
[1747705384035,2.09338459,2537.6,2537.2,2.07877]
[1747705384228,0.78799,2537.5,2537.2,1.2907]
[1747705384433,0.78802,2537.4,2537.3,1.3703]
[1747705385324,0.00591459,2537.6,2537.3,1.3703]
[1747705385525,0.78802,2537.4,2537.3,1.3703]
[1747705386230,3.99582,2537.4,2537.3,1.3703]
[1747705386430,0.78802,2537.4,2537.3,1.3703]
[1747705386830,1.2825,2537.4,2537.3,1.3703]
[1747705387634,0.00591459,2537.6,2537.4,0.78802]
[1747705387934,0.00591459,2537.6,2537.5,10.76209]
[1747705389735,0.6534,2538.3,2538.0,0.78781]
[1747705389930,3.2078,2538.5,2538.1,1.3444]
[1747705390128,0.78777,2538.2,2538.1,1.3444]
[1747705390330,1.3323,2538.4,2538.1,1.3444]
[1747705390530,3.2078,2538.5,2538.1,1.3444]
[1747705390730,3.9955,2538.5,2538.1,1.3444]
[1747705391045,0.78771,2538.4,2538.1,1.3444]
[1747705391533,4.0723,2538.5,2538.1,1.3444]
[1747705391740,2.74,2538.5,2538.2,0.78777]
[1747705391933,2.74,2538.5,2538.3,1.3444]
[1747705392136,0.79358459,2538.6,2538.3,1.3444]
[1747705392327,0.78771,2538.4,2538.3,1.3444]
[1747705392533,0.7877,2538.5,2538.3,1.3444]
[1747705392739,0.78768,2538.5,2538.3,1.3444]
[1747705392945,0.00591459,2538.6,2538.3,6.3444]
[1747705393236,0.00591459,2538.6,2538.4,0.6523]
[1747705393439,0.00591459,2538.6,2538.5,1.3178]
[1747705394339,0.00591459,2538.6,2538.5,2.10548]
[1747705394540,0.00591459,2538.6,2538.5,4.5256]
[1747705394741,0.00591459,2538.6,2538.5,5.31328]
[1747705394938,0.00591459,2538.6,2538.5,10.31328]
[1747705395341,0.00591459,2538.6,2538.5,9.5256]
[1747705395643,0.00591459,2538.6,2538.5,10.31328]
[1747705399942,0.00591459,2538.6,2538.5,4.5256]
[1747705400144,0.79356459,2538.6,2538.5,4.5256]
[1747705400444,0.79356459,2538.6,2538.5,3.2078]
[1747705401144,0.00591459,2538.6,2538.5,3.2078]
[1747705401347,3.53356459,2538.6,2538.5,3.2078]
[1747705401739,2.74591459,2538.6,2538.5,3.2078]
[1747705402140,0.00591459,2538.6,2538.5,4.5708]
[1747705403159,2.74591459,2538.6,2538.5,4.5708]
[1747705403753,3.53356459,2538.6,2538.5,4.5708]
[1747705404061,0.78771,2538.4,2538.3,0.00591459]
[1747705404255,1.2652,2538.5,2538.3,0.00591459]
[1747705404454,1.2652,2538.5,2538.3,1.34541459]
[1747705404657,2.74591459,2538.6,2538.3,1.34541459]
[1747705404861,2.74591459,2538.6,2538.5,0.78768]
[1747705405060,3.99522,2539.4,2538.5,8.678]
[1747705405363,0.78744,2539.3,2538.9,0.78753]
[1747705405563,1.2652,2539.3,2539.0,2.12702]
[1747705406465,1.2652,2539.3,2539.1,0.78749]
[1747705406663,3.21371459,2539.4,2539.2,2.12695]
[1747705406965,3.21371459,2539.4,2539.3,1.3395]
[1747705408367,4.53541459,2539.4,2538.9,8.678]
[1747705408668,0.78743,2539.3,2538.9,9.46555]
[1747705408862,1.3217,2539.2,2538.9,8.678]
[1747705409061,3.21371459,2539.4,2539.0,1.2637]
[1747705409271,4.53541459,2539.4,2539.1,0.78748]
[1747705409468,4.53541459,2539.4,2539.2,1.2637]
[1747705409663,0.00591459,2539.4,2539.3,9.44643]
[1747705410166,0.00591459,2539.4,2539.3,11.86143]
[1747705410358,0.00591459,2539.4,2539.3,15.74223]
[1747705410769,0.00591459,2539.4,2539.3,17.13193]
[1747705410971,0.00591459,2539.4,2539.3,15.6715]
[1747705411467,0.00591459,2539.4,2539.3,14.2818]
[1747705411468,2.05671459,2539.4,2539.3,14.2818]
[1747705412174,1.26931459,2539.4,2539.3,14.2818]
[1747705412373,1.26931459,2539.4,2539.3,11.8668]
[1747705412574,2.05671459,2539.4,2539.3,11.8668]
[1747705412772,1.26931459,2539.4,2539.3,11.8668]
[1747705413976,0.00591459,2539.4,2539.3,14.02743]
[1747705414176,0.00591459,2539.4,2539.3,10.81963]
[1747705414568,0.00591459,2539.4,2539.3,1.3732]
[1747705414770,8.21371459,2539.4,2538.8,2.415]
[1747705414969,3.2078,2538.9,2538.7,0.44603637]
[1747705415265,5.8066,2539.3,2538.9,0.78754]
[1747705415468,6.59403,2539.3,2538.8,2.16077]
[1747705415669,3.38623,2539.3,2538.9,0.78756]
[1747705415868,3.38623,2539.3,2539.0,1.3732]
[1747705416477,0.78746,2539.2,2539.0,1.3732]
[1747705416778,1.276,2539.1,2539.0,1.3732]
[1747705417482,0.6639,2539.3,2539.0,1.3732]
[1747705417678,0.00591459,2539.4,2539.3,0.78743]
[1747705418177,0.00591459,2539.4,2539.0,4.581]
[1747705418372,0.00591459,2539.4,2539.2,0.78745]
[1747705418683,0.00591459,2539.4,2539.3,1.3106]
[1747705419375,0.00591459,2539.4,2539.3,2.09803]
[1747705419985,0.00591459,2539.4,2539.3,1.3106]
[1747705420369,0.00591459,2539.4,2539.3,2.09803]
[1747705420870,0.00591459,2539.4,2539.3,1.3106]
[1747705421368,0.00591459,2539.4,2539.3,9.9676]
[1747705423880,0.79331459,2539.4,2539.3,8.657]
[1747705424179,0.78749,2539.1,2539.0,9.10303637]
[1747705424379,0.78749,2539.1,2539.0,0.44603637]
[1747705425077,1.3162,2539.2,2539.0,0.44603637]
[1747705425580,1.3162,2539.2,2539.1,1.3543]
[1747705426478,0.71451459,2539.4,2539.1,2.14178]
[1747705426681,0.78755,2539.0,2538.8,0.6735]
[1747705426979,3.2078,2539.2,2539.0,8.657]
[1747705427169,1.3253,2539.1,2539.0,8.657]
[1747705427366,0.71451459,2539.4,2539.0,8.657]
[1747705427574,0.78748,2539.2,2539.0,8.657]
[1747705428281,1.3253,2539.1,2539.0,8.657]
[1747705428673,2.11279,2539.1,2539.0,8.657]
[1747705429382,0.78759,2538.8,2538.7,0.44603637]
[1747705430384,1.2998,2538.8,2538.7,0.44603637]
[1747705430882,2.08739,2538.8,2538.7,0.44603637]
[1747705431682,0.6594,2538.9,2538.5,4.473]
[1747705431883,1.9164,2538.9,2538.5,4.473]
[1747705432181,2.70397,2538.9,2538.6,0.78765]
[1747705432383,2.70397,2538.9,2538.7,1.389]
[1747705433183,0.78759,2538.8,2538.7,1.389]
[1747705433483,0.78759,2538.8,2538.5,3.2078]
[1747705433484,0.78765,2538.6,2538.5,3.2078]
[1747705434191,5.17687,2538.7,2538.2,1.16193637]
[1747705434482,0.78774,2538.3,2538.2,9.6e-07]
[1747705434673,9.44474,2538.3,2538.2,9.6e-07]
[1747705434876,12.13324,2538.3,2538.2,9.6e-07]
[1747705435287,2.6885,2538.3,2537.8,3.2078]
[1747705435478,3.99553,2538.4,2538.1,1.3236]
[1747705435675,3.2078,2538.4,2538.1,1.3236]
[1747705435878,0.78769,2538.5,2538.1,5.3192]
[1747705436085,0.78766,2538.6,2538.2,2.11137]
[1747705436383,1.3256,2538.8,2538.3,1.3236]
[1747705436581,0.78764,2538.7,2538.3,2.11134]
[1747705436783,0.78769,2538.5,2538.3,1.3236]
[1747705437088,0.78769,2538.5,2537.8,0.00591459]
[1747705437089,11.8668,2538.4,2537.8,0.00591459]
[1747705437281,0.78783,2538.0,2537.8,0.00591459]
[1747705437585,1.3256,2537.9,2537.8,0.00591459]
[1747705438984,1.3256,2537.9,2537.8,1.39381459]
[1747705439381,0.00591459,2538.1,2537.8,1.39381459]
[1747705439682,0.79373459,2538.1,2537.8,1.39381459]
[1747705440085,0.78783,2538.0,2537.8,1.39381459]
[1747705440291,0.78786,2537.9,2537.8,0.00591459]
[1747705440585,1.50746,2537.9,2537.8,0.00591459]
[1747705440986,1.49810956,2537.9,2537.8,0.00591459]
[1747705441784,0.7196,2537.9,2537.8,0.00591459]
[1747705442291,2.83886,2537.9,2537.8,0.00591459]
[1747705442479,6.04666,2537.9,2537.8,0.00591459]
[1747705442890,11.04666,2537.9,2537.8,0.00591459]
[1747705443589,6.04666,2537.9,2537.8,0.00591459]
[1747705443793,14.70366,2537.9,2537.8,0.00591459]
[1747705444892,19.70366,2537.9,2537.8,0.00591459]
[1747705445085,14.70366,2537.9,2537.8,0.00591459]
[1747705445694,19.70366,2537.9,2537.8,0.00591459]
[1747705446689,14.70366,2537.9,2537.8,0.00591459]
[1747705448597,13.9158,2537.9,2537.8,0.00591459]
[1747705448892,14.70366,2537.9,2537.8,0.00591459]
[1747705449586,19.70366,2537.9,2537.8,0.00591459]
[1747705450493,14.70366,2537.9,2537.8,0.00591459]
[1747705450792,18.9158,2537.9,2537.3,3.2078]
[1747705450987,13.9158,2537.9,2537.4,1.2915]
[1747705451192,0.78794,2537.7,2537.4,1.2915]
[1747705451490,13.9158,2537.9,2537.4,1.2915]
[1747705451690,13.9158,2537.9,2537.4,1.29741459]
[1747705452092,13.9158,2537.9,2537.4,2.02721459]
[1747705452293,13.9158,2537.9,2537.5,0.78796]
[1747705452591,14.70366,2537.9,2537.6,1.2915]
[1747705453096,0.7196,2537.9,2537.6,1.2915]
[1747705453297,0.7196,2537.9,2537.6,2.07945]
[1747705453595,1.50748,2537.9,2537.7,0.7307]
[1747705453791,0.7196,2537.9,2537.7,2.0624]
[1747705453992,2.11132459,2538.1,2537.7,2.85031]
[1747705454193,1.32351459,2538.1,2537.8,2.11958]
[1747705454393,0.00591459,2538.1,2537.8,2.11958]
[1747705454798,0.00591459,2538.1,2537.9,0.78785]
[1747705454999,0.00591459,2538.1,2538.0,1.3317]
[1747705455294,0.00591459,2538.1,2537.7,0.7307]
[1747705455597,0.78789,2537.8,2537.7,0.7307]
[1747705455798,0.78793,2537.7,2537.5,1.3317]
[1747705456196,1.3057,2537.8,2537.5,1.3317]
[1747705456197,0.78796,2537.6,2537.5,1.3317]
[1747705456397,0.78794,2537.7,2537.5,1.3317]
[1747705456797,2.006,2537.8,2537.5,1.3317]
[1747705456998,2.006,2537.8,2537.5,2.11968]
[1747705457392,2.7939,2537.8,2537.5,1.3317]
[1747705457701,2.006,2537.8,2537.5,1.3317]
[1747705457998,2.006,2537.8,2537.5,2.11967]
[1747705458200,3.2078,2537.9,2537.6,0.78795]
[1747705458398,2.09942459,2538.1,2537.7,2.14812]
[1747705458595,2.09942459,2538.1,2537.8,2.14807]
[1747705458596,1.31161459,2538.1,2537.8,2.14807]
[1747705458796,0.78783,2538.0,2537.8,1.3602]
[1747705459088,0.78786,2537.9,2537.8,1.3602]
[1747705459705,0.78785,2538.0,2537.8,1.3602]
[1747705460203,0.78786,2537.9,2537.8,1.3602]
[1747705460903,3.2078,2537.9,2537.6,0.78795]
[1747705461302,3.2078,2537.9,2537.7,1.3511]
[1747705462707,3.2078,2537.9,2537.7,2.139]
[1747705462899,2.09943459,2538.1,2537.7,2.139]
[1747705463204,2.09943459,2538.1,2537.8,1.3414]
[1747705463401,0.00591459,2538.1,2537.9,0.78785]
[1747705463606,0.00591459,2538.1,2538.0,2.0112]
[1747705463805,0.79371459,2538.1,2538.0,2.0112]
[1747705464001,0.79371459,2538.1,2538.0,1.3414]
[1747705464209,0.78789,2537.9,2537.6,0.42411086]
[1747705464413,0.78793,2537.7,2537.6,0.42411086]
[1747705465000,2.22163,2537.7,2537.6,0.42411086]
[1747705465408,4.6415,2537.7,2537.4,0.00591459]
[1747705465808,0.78799,2537.5,2537.4,0.00591459]
[1747705467310,2.09029,2537.5,2537.4,0.00591459]
[1747705468012,1.3023,2537.5,2537.4,0.00591459]
[1747705468198,0.78799,2537.5,2537.4,0.00591459]
[1747705468914,9.44696,2537.6,2537.4,0.00591459]
[1747705469411,0.78799,2537.5,2537.4,0.00591459]
[1747705469607,8.659,2537.6,2537.4,0.00591459]
[1747705469608,9.44697,2537.6,2537.4,0.00591459]
[1747705469808,3.9454,2537.7,2537.4,0.00591459]
[1747705470012,0.78797,2537.6,2537.4,1.36281459]
[1747705470311,0.78799,2537.5,2537.4,1.36281459]
[1747705472009,0.78799,2537.5,2537.4,0.00591459]
[1747705473010,5.78799,2537.5,2537.4,0.00591459]
[1747705473213,0.78799,2537.5,2537.4,0.00591459]
[1747705476604,13.9668,2537.7,2537.4,0.00591459]
[1747705476915,3.2078,2537.7,2537.6,0.78796]
[1747705477111,3.12131316,2537.9,2537.7,0.7879]
[1747705477309,3.12131316,2537.9,2537.6,0.78794]
[1747705477511,3.99572,2537.8,2537.7,1.3434]
[1747705479614,0.78799,2537.5,2537.4,1.34931459]
[1747705480916,3.99579,2537.5,2537.4,0.00591459]
[1747705481218,5.31699,2537.5,2537.4,0.00591459]
[1747705482022,0.78814,2537.0,2536.9,0.60045437]
[1747705482217,0.78814,2537.0,2536.9,1.97095437]
[1747705482619,0.78802,2537.4,2536.9,1.97095437]
[1747705482820,0.78802,2537.4,2537.0,0.78811]
[1747705483122,0.78802,2537.4,2537.1,1.3705]
[1747705483323,0.78802,2537.4,2537.2,0.6659]
[1747705483619,0.78805,2537.3,2537.2,0.6659]
[1747705483823,0.78804,2537.4,2537.2,0.6659]
[1747705484523,0.78804,2537.4,2537.2,1.4006]
[1747705485023,11.8608,2537.5,2537.2,1.4006]
[1747705485418,3.12131316,2538.0,2537.2,6.4006]
[1747705485719,3.12131316,2538.0,2537.9,0.78786]
[1747705485925,3.12131316,2538.0,2537.8,0.78787]
[1747705486122,3.90914316,2538.0,2537.9,1.4368]
[1747705486423,3.12131316,2538.0,2537.9,0.7011]
[1747705487323,0.79373459,2538.1,2537.9,0.7011]
[1747705490023,0.00591459,2538.1,2537.4,3.80825437]
[1747705490220,0.00591459,2538.1,2537.6,0.6912]
[1747705490421,0.00591459,2538.1,2537.7,3.2078]
[1747705490822,0.00591459,2538.1,2537.7,11.8598]
[1747705491327,0.00591459,2538.1,2538.0,0.78783]
[1747705492525,0.00591459,2538.1,2537.7,11.8598]
[1747705492720,0.00591459,2538.1,2537.9,0.78786]
[1747705493320,0.00591459,2538.1,2538.0,1.47103]
[1747705493523,0.00591459,2538.1,2538.0,0.6832]
[1747705494020,0.00591459,2538.1,2538.0,1.47103]
[1747705495921,0.00591459,2538.1,2538.0,4.67883]
[1747705496332,0.00591459,2538.1,2538.0,5.96583]
[1747705497529,0.00591459,2538.1,2538.0,10.96583]
[1747705497919,0.00591459,2538.1,2538.0,11.39050478]
[1747705498631,1.3731,2538.8,2538.4,0.7877]
[1747705498936,1.3731,2538.8,2538.5,2.1217]
[1747705499625,2.16069,2538.8,2538.5,2.1217]
[1747705499835,1.3731,2538.8,2538.5,2.1217]
[1747705500030,0.78768,2538.5,2538.4,0.00591459]
[1747705500226,3.99548,2538.5,2538.4,0.00591459]
[1747705500521,8.99548,2538.5,2538.4,0.00591459]
[1747705501427,3.99548,2538.5,2538.4,0.00591459]
[1747705501627,8.99548,2538.5,2538.4,0.00591459]
[1747705501824,8.99548,2538.5,2537.3,9.75578673]
[1747705501825,1.96949,2538.2,2537.3,9.75578673]
[1747705502128,3.2078,2537.9,2537.5,1.3475]
[1747705502430,3.2078,2537.9,2537.3,0.44908673]
[1747705502633,3.2078,2537.9,2537.4,1.3475]
[1747705502935,3.2078,2538.2,2538.0,0.78783]
[1747705503131,3.2078,2538.2,2538.1,2.1353]
[1747705503439,0.78768,2538.5,2538.1,2.13528]
[1747705503633,0.78768,2538.5,2538.2,1.3475]
[1747705504441,3.99554,2538.3,2538.2,1.3475]
[1747705504635,1.2874,2538.4,2538.2,1.3475]
[1747705505341,0.7114,2538.6,2538.2,1.3475]
[1747705505532,2.0313,2538.6,2538.2,1.3475]
[1747705505731,0.7114,2538.6,2538.2,1.3475]
[1747705505930,0.7114,2538.6,2538.3,1.48903]
[1747705506232,3.2078,2538.7,2538.4,2.0671]
[1747705506437,3.99544,2538.7,2538.4,2.0671]
[1747705506645,3.2078,2538.7,2538.4,2.0671]
[1747705506938,0.78768,2538.5,2538.4,1.3706]
[1747705507238,3.99543,2538.7,2538.4,1.3706]
[1747705507438,4.5277,2538.7,2538.4,1.3706]
[1747705507735,5.31533,2538.7,2538.4,1.3706]
[1747705508534,0.78768,2538.5,2538.4,1.3706]
[1747705508735,4.5277,2538.7,2538.0,10.0169]
[1747705508736,0.78776,2538.3,2538.0,10.0169]
[1747705508941,1.3248,2538.4,2538.1,1.2755]
[1747705509131,0.78767,2538.6,2538.1,2.06329]
[1747705509334,2.11247,2538.6,2538.2,1.2755]
[1747705509740,2.11247,2538.6,2538.2,2.06326]
[1747705510036,3.2078,2538.7,2538.4,0.7877]
[1747705510241,3.2078,2538.7,2538.5,0.78767]
[1747705510442,3.2078,2538.7,2538.6,1.942]
[1747705512336,0.00591459,2538.9,2538.6,6.942]
[1747705512531,0.00591459,2538.9,2538.8,0.78758]
[1747705512736,3.2078,2539.5,2538.8,3.2078]
[1747705512938,3.99518,2539.5,2539.1,0.78749]
[1747705513136,3.99518,2539.5,2539.2,2.0222]
[1747705513341,3.99518,2539.5,2539.3,1.3109]
[1747705513852,3.2078,2539.5,2539.3,1.3109]
[1747705514237,0.72731459,2539.7,2539.3,1.3109]
[1747705514644,1.51463459,2539.7,2539.3,2.09832]
[1747705514939,0.72731459,2539.7,2539.3,1.3109]
[1747705515247,0.00591459,2539.7,2539.3,4.5187]
[1747705515645,0.00591459,2539.7,2539.6,0.78734]
[1747705516044,0.00591459,2539.7,2539.6,8.99514]
[1747705516252,0.00591459,2539.7,2539.6,10.31404]
[1747705516642,1.28995128,2540.2,2540.0,0.78719]
[1747705516944,1.28995128,2540.2,2540.1,2.0874]
[1747705517547,0.00591459,2540.4,2540.1,2.0874]
[1747705517740,0.00591459,2540.4,2540.2,1.388]
[1747705518249,0.79300459,2540.4,2540.2,1.388]
[1747705518453,0.00591459,2540.4,2540.2,1.388]
[1747705519133,0.79301459,2540.4,2540.2,1.388]
[1747705519338,0.00591459,2540.4,2540.2,1.388]
[1747705521234,0.79301459,2540.4,2540.3,8.637]
[1747705521435,1.30941459,2540.4,2540.3,8.637]
[1747705521638,0.00591459,2540.4,2540.3,8.637]
[1747705523048,0.78718,2540.1,2540.0,11.8438]
[1747705523349,0.78718,2540.1,2539.6,0.6768]
[1747705523350,0.7873,2539.8,2539.6,0.6768]
[1747705523649,1.9417,2540.0,2539.6,2.0009]
[1747705523842,0.78726,2539.9,2539.6,2.0009]
[1747705524042,1.2639,2539.8,2539.6,2.0009]
[1747705524234,1.2639,2539.8,2539.7,1.3241]
[1747705524442,0.6778,2540.0,2539.7,1.3241]
[1747705524734,1.46504,2540.0,2539.7,1.3241]
[1747705524934,0.78728,2539.9,2539.7,1.3241]
[1747705525350,2.05118,2539.9,2539.7,1.3241]
[1747705526249,0.78727,2539.8,2539.7,1.3241]
[1747705526448,1.2639,2539.9,2539.4,11.8438]
[1747705526745,3.2078,2539.6,2539.1,0.00591459]
[1747705526937,0.78744,2539.3,2539.1,0.00591459]
[1747705527133,0.78742,2539.4,2539.1,0.00591459]
[1747705527535,2.13748,2539.5,2539.1,0.79340459]
[1747705527737,4.5492,2539.9,2539.3,3.2078]
[1747705527944,1.3414,2539.9,2539.4,10.73579]
[1747705528140,0.78736,2539.6,2539.4,9.9484]
[1747705528335,0.78735,2539.6,2539.4,9.9484]
[1747705528752,2.84143,2539.7,2539.4,9.9484]
[1747705530947,0.6941,2539.8,2539.4,10.73579]